fUST/lending_fUST_20260118
["ID","MTS","AMOUNT","RATE_DAILY","PERIOD"]
[402485876,1768685442240,-532.55606123,0.00016438,3]
[402485877,1768685442249,-500.0,0.00016438,3]
[402485878,1768685442260,-500.0,0.00016438,3]
[402485879,1768685442270,-500.0,0.00016438,3]
[402485880,1768685442281,-565.59190615,0.00016438,3]
[402485881,1768685442290,-990.96,0.00016438,3]
[402485882,1768685442299,-500.0,0.00016438,3]
[402485883,1768685442308,-500.0,0.00016438,3]
[402485884,1768685442318,-500.0,0.00016438,3]
[402485885,1768685442327,-500.0,0.00016438,3]
[402485886,1768685442336,-611.92,0.00016438,3]
[402485887,1768685442345,-500.0,0.00016438,3]
[402485888,1768685442354,-500.0,0.00016438,3]
[402485889,1768685442362,-500.0,0.00016438,3]
[402485890,1768685442371,-424.34553456,0.00016438,3]
[402485891,1768685442380,-999.25,0.00016438,3]
[402485892,1768685442389,-500.0,0.00016438,3]
[402485893,1768685442399,-543.77,0.00016438,3]
[402485894,1768685442408,-500.0,0.00016438,3]
[402485895,1768685442418,-500.0,0.00016438,3]
[402485896,1768685442427,-500.0,0.00016438,3]
[402485897,1768685442436,-748.74,0.00016438,3]
[402485898,1768685442446,-500.0,0.00016438,3]
[402485899,1768685442455,-500.0,0.00016438,3]
[402485900,1768685442463,-500.0,0.00016438,3]
[402485901,1768685442472,-500.0,0.00016438,3]
[402485902,1768685442482,-500.0,0.00016438,3]
[402485903,1768685442492,-500.0,0.00016438,3]
[402485904,1768685442502,-500.0,0.00016438,3]
[402485905,1768685442511,-481.66318474,0.00016438,3]
[402485906,1768685442521,-500.0,0.00016438,3]
[402485907,1768685442531,-500.0,0.00016438,3]
[402485908,1768685442540,-500.0,0.00016438,3]
[402485909,1768685442549,-500.0,0.00016438,3]
[402485910,1768685442558,-533.67555497,0.00016438,3]
[402485911,1768685442568,-500.0,0.00016438,3]
[402485912,1768685442577,-500.0,0.00016438,3]
[402485913,1768685442586,-500.0,0.00016438,3]
[402485914,1768685442596,-500.0,0.00016438,3]
[402485915,1768685442605,-671.71,0.00016438,3]
[402485916,1768685442615,-1103.59,0.00016438,3]
[402485917,1768685442624,-526.3812206,0.00016438,3]
[402485918,1768685442633,-500.0,0.00016438,3]
[402485919,1768685442642,-500.0,0.00016438,3]
[402485920,1768685442651,-500.0,0.00016438,3]
[402485921,1768685442660,-500.0,0.00016438,3]
[402485922,1768685442669,-500.0,0.00016438,3]
[402485923,1768685442679,-500.0,0.00016438,3]
[402485924,1768685442689,-1000.42,0.00016438,3]
[402485925,1768685442699,-500.0,0.00016438,3]
[402485926,1768685442709,-738.45,0.00016438,3]
[402485927,1768685442718,-500.0,0.00016438,3]
[402485928,1768685442728,-500.0,0.00016438,3]
[402485929,1768685442737,-1384.99,0.00016438,3]
[402485930,1768685442747,-500.0,0.00016438,3]
[402485931,1768685442756,-500.0,0.00016438,3]
[402485932,1768685442766,-500.0,0.00016438,3]
[402485933,1768685442775,-500.0,0.00016438,3]
[402485934,1768685442785,-500.0,0.00016438,3]
[402485935,1768685442795,-500.0,0.00016438,3]
[402485936,1768685442803,-500.0,0.00016438,3]
[402485937,1768685442812,-500.0,0.00016438,3]
[402485938,1768685442821,-517.81430866,0.00016438,3]
[402485939,1768685442831,-500.0,0.00016438,3]
[402485940,1768685442840,-500.0,0.00016438,3]
[402485941,1768685442850,-500.0,0.00016438,3]
[402485942,1768685442859,-500.0,0.00016438,3]
[402485943,1768685442868,-500.0,0.00016438,3]
[402485944,1768685442878,-551.63,0.00016438,3]
[402485945,1768685442885,-555.17,0.00016438,3]
[402485946,1768685442892,-500.0,0.00016438,3]
[402485947,1768685442899,-1389.61,0.00016438,3]
[402485948,1768685442907,-500.0,0.00016438,3]
[402485949,1768685442916,-618.02349392,0.00016438,3]
[402485950,1768685442926,-622.64063856,0.00016438,3]
[402485951,1768685442937,-609.79,0.00016438,3]
[402485952,1768685442947,-500.0,0.00016438,3]
[402485953,1768685442957,-500.0,0.00016438,3]
[402485954,1768685442966,-500.0,0.00016438,3]
[402485955,1768685442975,-857.53,0.00016438,3]
[402485956,1768685442985,-1279.11,0.00016438,3]
[402485957,1768685442995,-628.7,0.00016438,3]
[402485958,1768685443004,-500.0,0.00016438,3]
[402485959,1768685443013,-640.29,0.00016438,3]
[402485960,1768685443023,-641.81,0.00016438,3]
[402485961,1768685443032,-500.0,0.00016438,3]
[402485962,1768685443041,-1213.37,0.00016438,3]
[402485963,1768685443049,-500.0,0.00016438,3]
[402485964,1768685443059,-500.0,0.00016438,3]
[402485965,1768685443068,-500.0,0.00016438,3]
[402485966,1768685443077,-500.0,0.00016438,3]
[402485967,1768685443086,-500.0,0.00016438,3]
[402485968,1768685443095,-1277.68,0.00016438,3]
[402485969,1768685443105,-500.0,0.00016438,3]
[402485970,1768685443114,-500.0,0.00016438,3]
[402485971,1768685443124,-500.0,0.00016438,3]
[402485972,1768685443133,-500.0,0.00016438,3]
[402485973,1768685443143,-500.0,0.00016438,3]
[402485974,1768685443152,-500.0,0.00016438,3]
[402485975,1768685443161,-500.0,0.00016438,3]
[402485976,1768685443170,-500.0,0.00016438,3]
[402485977,1768685443179,-500.0,0.00016438,3]
[402485978,1768685443189,-500.0,0.00016438,3]
[402485979,1768685443198,-500.0,0.00016438,3]
[402485980,1768685443208,-986.32,0.00016438,3]
[402485981,1768685443218,-537.77,0.00016438,3]
[402485982,1768685443227,-500.0,0.00016438,3]
[402485983,1768685443236,-500.0,0.00016438,3]
[402485984,1768685443247,-500.0,0.00016438,3]
[402485985,1768685443256,-600.83,0.00016438,3]
[402485986,1768685443268,-500.0,0.00016438,3]
[402485987,1768685443277,-656.88,0.00016438,3]
[402485988,1768685443287,-500.0,0.00016438,3]
[402485989,1768685443296,-500.0,0.00016438,3]
[402485990,1768685443307,-536.50517922,0.00016438,3]
[402485991,1768685443317,-500.0,0.00016438,3]
[402485992,1768685443326,-500.0,0.00016438,3]
[402485993,1768685443337,-500.0,0.00016438,3]
[402485994,1768685443348,-500.0,0.00016438,3]
[402485995,1768685443358,-500.0,0.00016438,3]
[402485996,1768685443367,-500.0,0.00016438,3]
[402485997,1768685443377,-500.0,0.00016438,3]
[402485998,1768685443386,-616.17,0.00016438,3]
[402485999,1768685443396,-1405.44,0.00016438,3]
[402486000,1768685443405,-500.0,0.00016438,3]
[402486001,1768685443414,-540.01468021,0.00016438,3]
[402486002,1768685443424,-500.0,0.00016438,3]
[402486003,1768685443434,-500.0,0.00016438,3]
[402486004,1768685443444,-500.0,0.00016438,3]
[402486005,1768685443452,-500.0,0.00016438,3]
[402486006,1768685443461,-500.0,0.00016438,3]
[402486007,1768685443471,-500.0,0.00016438,3]
[402486008,1768685443480,-500.0,0.00016438,3]
[402486009,1768685443490,-500.0,0.00016438,3]
[402486010,1768685443499,-500.0,0.00016438,3]
[402486011,1768685443508,-500.0,0.00016438,3]
[402486012,1768685443518,-500.0,0.00016438,3]
[402486013,1768685443527,-500.0,0.00016438,3]
[402486014,1768685443537,-500.0,0.00016438,3]
[402486015,1768685443546,-1173.63,0.00016438,3]
[402486016,1768685443555,-500.0,0.00016438,3]
[402486017,1768685443565,-500.0,0.00016438,3]
[402486018,1768685443574,-500.0,0.00016438,3]
[402486019,1768685443583,-500.0,0.00016438,3]
[402486020,1768685443593,-500.0,0.00016438,3]
[402486021,1768685443602,-500.0,0.00016438,3]
[402486022,1768685443611,-543.38,0.00016438,3]
[402486023,1768685443619,-500.0,0.00016438,3]
[402486024,1768685443629,-500.0,0.00016438,3]
[402486025,1768685443638,-500.0,0.00016438,3]
[402486026,1768685443648,-500.0,0.00016438,3]
[402486027,1768685443657,-765.73,0.00016438,3]
[402486028,1768685443667,-500.0,0.00016438,3]
[402486029,1768685443676,-500.0,0.00016438,3]
[402486030,1768685443685,-1330.48,0.00016438,3]
[402486031,1768685443695,-500.0,0.00016438,3]
[402486032,1768685443704,-500.0,0.00016438,3]
[402486033,1768685443713,-500.0,0.00016438,3]
[402486034,1768685443723,-500.0,0.00016438,3]
[402486035,1768685443732,-500.0,0.00016438,3]
[402486036,1768685443742,-500.0,0.00016438,3]
[402486037,1768685443751,-707.52,0.00016438,3]
[402486038,1768685443761,-500.0,0.00016438,3]
[402486039,1768685443770,-500.0,0.00016438,3]
[402486040,1768685443779,-500.0,0.00016438,3]
[402486041,1768685443788,-632.04690666,0.00016438,3]
[402486042,1768685443798,-500.0,0.00016438,3]
[402486043,1768685443809,-765.45,0.00016438,3]
[402486044,1768685443818,-500.0,0.00016438,3]
[402486045,1768685443828,-500.0,0.00016438,3]
[402486046,1768685443837,-500.0,0.00016438,3]
[402486047,1768685443847,-500.0,0.00016438,3]
[402486048,1768685443856,-500.0,0.00016438,3]
[402486049,1768685443865,-500.0,0.00016438,3]
[402486050,1768685443874,-1456.27,0.00016438,3]
[402486051,1768685443883,-500.0,0.00016438,3]
[402486052,1768685443892,-500.0,0.00016438,3]
[402486053,1768685443901,-1117.34,0.00016438,3]
[402486054,1768685443911,-500.0,0.00016438,3]
[402486055,1768685443920,-500.0,0.00016438,3]
[402486056,1768685443930,-500.0,0.00016438,3]
[402486057,1768685443939,-500.0,0.00016438,3]
[402486058,1768685443948,-500.0,0.00016438,3]
[402486059,1768685443957,-725.5,0.00016438,3]
[402486060,1768685443967,-500.0,0.00016438,3]
[402486061,1768685443976,-500.0,0.00016438,3]
[402486062,1768685443986,-545.8035631,0.00016438,3]
[402486063,1768685443995,-500.0,0.00016438,3]
[402486064,1768685444005,-500.0,0.00016438,3]
[402486065,1768685444015,-500.0,0.00016438,3]
[402486066,1768685444026,-500.0,0.00016438,3]
[402486067,1768685444036,-694.74,0.00016438,3]
[402486068,1768685444047,-500.0,0.00016438,3]
[402486069,1768685444057,-961.19,0.00016438,3]
[402486070,1768685444067,-644.15,0.00016438,3]
[402486071,1768685444077,-500.0,0.00016438,3]
[402486072,1768685444086,-659.96,0.00016438,3]
[402486073,1768685444096,-500.0,0.00016438,3]
[402486074,1768685444105,-500.0,0.00016438,3]
[402486075,1768685444114,-500.0,0.00016438,3]
[402486076,1768685444124,-500.0,0.00016438,3]
[402486077,1768685444133,-661.06,0.00016438,3]
[402486078,1768685444142,-500.0,0.00016438,3]
[402486079,1768685444152,-500.0,0.00016438,3]
[402486080,1768685444161,-500.0,0.00016438,3]
[402486081,1768685444170,-843.65,0.00016438,3]
[402486082,1768685444179,-500.0,0.00016438,3]
[402486083,1768685444189,-427.39365242,0.00016438,3]
[402486084,1768685444198,-500.0,0.00016438,3]
[402486085,1768685444207,-500.0,0.00016438,3]
[402486086,1768685444216,-500.0,0.00016438,3]
[402486087,1768685444226,-500.0,0.00016438,3]
[402486088,1768685444235,-500.0,0.00016438,3]
[402486089,1768685444244,-500.0,0.00016438,3]
[402486090,1768685444253,-500.0,0.00016438,3]
[402486091,1768685444265,-619.32,0.00016438,3]
[402486092,1768685444275,-500.0,0.00016438,3]
[402486093,1768685444285,-500.0,0.00016438,3]
[402486094,1768685444294,-500.0,0.00016438,3]
[402486095,1768685444303,-500.0,0.00016438,3]
[402486096,1768685444313,-500.0,0.00016438,3]
[402486097,1768685444322,-775.68,0.00016438,3]
[402486098,1768685444333,-500.0,0.00016438,3]
[402486099,1768685444342,-202.85755538,0.00016438,3]
[402486100,1768685444353,-500.0,0.00016438,3]
[402486101,1768685444363,-500.0,0.00016438,3]
[402486102,1768685444372,-1151.82,0.00016438,3]
[402486103,1768685444381,-687.87,0.00016438,3]
[402486104,1768685444390,-500.0,0.00016438,3]
[402486105,1768685444400,-500.0,0.00016438,3]
[402486106,1768685444410,-570.93,0.00016438,3]
[402486107,1768685444419,-500.0,0.00016438,3]
[402486108,1768685444429,-1032.64,0.00016438,3]
[402486109,1768685444438,-500.0,0.00016438,3]
[402486110,1768685444448,-500.0,0.00016438,3]
[402486111,1768685444458,-500.0,0.00016438,3]
[402486112,1768685444467,-500.0,0.00016438,3]
[402486113,1768685444479,-500.0,0.00016438,3]
[402486114,1768685444488,-500.0,0.00016438,3]
[402486115,1768685444498,-777.23,0.00016438,3]
[402486116,1768685444508,-500.0,0.00016438,3]
[402486117,1768685444517,-500.0,0.00016438,3]
[402486118,1768685444527,-500.0,0.00016438,3]
[402486119,1768685444536,-500.0,0.00016438,3]
[402486120,1768685444545,-500.0,0.00016438,3]
[402486121,1768685444555,-500.0,0.00016438,3]
[402486122,1768685444564,-500.0,0.00016438,3]
[402486124,1768685444574,-500.0,0.00016438,3]
[402486125,1768685444583,-500.0,0.00016438,3]
[402486126,1768685444593,-500.0,0.00016438,3]
[402486127,1768685444603,-500.0,0.00016438,3]
[402486128,1768685444612,-500.0,0.00016438,3]
[402486129,1768685444622,-500.0,0.00016438,3]
[402486130,1768685444632,-500.0,0.00016438,3]
[402486132,1768685444642,-791.29,0.00016438,3]
[402486135,1768685444652,-800.24,0.00016438,3]
[402486138,1768685444669,-843.09,0.00016438,3]
[402486140,1768685444678,-1081.02,0.00016438,3]
[402486142,1768685444687,-500.0,0.00016438,3]
[402486144,1768685444697,-500.0,0.00016438,3]
[402486146,1768685444707,-500.0,0.00016438,3]
[402486147,1768685444716,-500.0,0.00016438,3]
[402486149,1768685444725,-523.99827377,0.00016438,3]
[402486151,1768685444736,-707.25,0.00016438,3]
[402486152,1768685444745,-500.0,0.00016438,3]
[402486153,1768685444755,-500.0,0.00016438,3]
[402486154,1768685444764,-771.21,0.00016438,3]
[402486155,1768685444773,-500.0,0.00016438,3]
[402486156,1768685444783,-500.0,0.00016438,3]
[402486157,1768685444803,-500.0,0.00016438,3]
[402486159,1768685444819,-532.59,0.00016438,3]
[402486160,1768685444828,-500.0,0.00016438,3]
[402486162,1768685444838,-500.0,0.00016438,3]
[402486163,1768685444847,-500.0,0.00016438,3]
[402486165,1768685444856,-500.0,0.00016438,3]
[402486166,1768685444865,-500.0,0.00016438,3]
[402486168,1768685444874,-500.0,0.00016438,3]
[402486169,1768685444883,-794.73,0.00016438,3]
[402486170,1768685444893,-500.0,0.00016438,3]
[402486171,1768685444902,-500.0,0.00016438,3]
[402486172,1768685444911,-932.84,0.00016438,3]
[402486173,1768685444920,-500.0,0.00016438,3]
[402486174,1768685444929,-500.0,0.00016438,3]
[402486175,1768685444939,-935.66,0.00016438,3]
[402486176,1768685444948,-500.0,0.00016438,3]
[402486177,1768685444957,-1551.42,0.00016438,3]
[402486178,1768685444968,-962.51,0.00016438,3]
[402486179,1768685444977,-907.15,0.00016438,3]
[402486181,1768685444986,-500.0,0.00016438,3]
[402486182,1768685444995,-500.0,0.00016438,3]
[402486184,1768685445004,-1769.73,0.00016438,3]
[402486186,1768685445014,-694.52,0.00016438,3]
[402486188,1768685445024,-500.0,0.00016438,3]
[402486189,1768685445034,-500.0,0.00016438,3]
[402486190,1768685445046,-500.0,0.00016438,3]
[402486191,1768685445055,-1391.6,0.00016438,3]
[402486192,1768685445064,-500.0,0.00016438,3]
[402486193,1768685445074,-281.96847602,0.00016438,3]
[402486194,1768685445083,-500.0,0.00016438,3]
[402486195,1768685445093,-500.0,0.00016438,3]
[402486196,1768685445103,-500.0,0.00016438,3]
[402486197,1768685445112,-500.0,0.00016438,3]
[402486198,1768685445122,-1200.0,0.00016438,2]
[402486199,1768685445131,-500.0,0.00016438,3]
[402486200,1768685445141,-500.0,0.00016438,3]
[402486201,1768685445150,-500.0,0.00016438,3]
[402486202,1768685445159,-500.0,0.00016438,3]
[402486203,1768685445169,-500.0,0.00016438,3]
[402486204,1768685445179,-500.0,0.00016438,3]
[402486205,1768685445189,-500.0,0.00016438,3]
[402486206,1768685445199,-500.0,0.00016438,3]
[402486207,1768685445209,-500.0,0.00016438,2]
[402486208,1768685445218,-500.0,0.00016438,3]
[402486209,1768685445226,-500.0,0.00016438,3]
[402486210,1768685445236,-500.0,0.00016438,3]
[402486211,1768685445245,-500.0,0.00016438,3]
[402486212,1768685445254,-500.0,0.00016438,3]
[402486213,1768685445270,-500.0,0.00016438,3]
[402486214,1768685445279,-500.0,0.00016438,3]
[402486216,1768685445288,-500.0,0.00016438,3]
[402486217,1768685445298,-500.0,0.00016438,3]
[402486218,1768685445310,-500.0,0.00016438,3]
[402486219,1768685445319,-500.0,0.00016438,3]
[402486220,1768685445328,-526.17897158,0.00016438,3]
[402486221,1768685445339,-500.0,0.00016438,3]
[402486222,1768685445348,-500.0,0.00016438,3]
[402486223,1768685445357,-500.0,0.00016438,3]
[402486224,1768685445367,-500.0,0.00016438,3]
[402486225,1768685445376,-1633.97,0.00016438,3]
[402486226,1768685445385,-246.0,0.00016438,3]
[402486227,1768685445395,-500.0,0.00016438,3]
[402486228,1768685445404,-500.0,0.00016438,3]
[402486229,1768685445414,-500.0,0.00016438,3]
[402486230,1768685445423,-511.03,0.00016438,3]
[402486231,1768685445433,-500.0,0.00016438,3]
[402486232,1768685445442,-555.48,0.00016438,3]
[402486233,1768685445452,-1000.0,0.00016438,2]
[402486234,1768685445462,-701.17,0.00016438,3]
[402486235,1768685445472,-500.0,0.00016438,3]
[402486236,1768685445481,-500.0,0.00016438,3]
[402486237,1768685445491,-500.0,0.00016438,3]
[402486238,1768685445501,-609.19,0.00016438,3]
[402486239,1768685445511,-500.0,0.00016438,3]
[402486240,1768685445521,-500.0,0.00016438,3]
[402486241,1768685445531,-594.69,0.00016438,3]
[402486242,1768685445542,-500.0,0.00016438,3]
[402486243,1768685445552,-500.0,0.00016438,3]
[402486244,1768685445563,-500.0,0.00016438,3]
[402486245,1768685445574,-2076.46,0.00016438,3]
[402486246,1768685445583,-1191.65,0.00016438,3]
[402486247,1768685445788,-500.0,0.00016438,3]
[402486248,1768685445798,-822.5,0.00016438,3]
[402486249,1768685445808,-500.0,0.00016438,3]
[402486250,1768685445819,-632.68,0.00016438,3]
[402486251,1768685445828,-500.0,0.00016438,3]
[402486252,1768685445838,-500.0,0.00016438,3]
[402486253,1768685445848,-500.0,0.00016438,3]
[402486254,1768685445858,-500.0,0.00016438,3]
[402486255,1768685445867,-500.0,0.00016438,3]
[402486256,1768685445877,-500.0,0.00016438,3]
[402486257,1768685445887,-1719.73,0.00016438,3]
[402486258,1768685445897,-500.0,0.00016438,3]
[402486259,1768685445907,-596.26,0.00016438,3]
[402486260,1768685445916,-500.0,0.00016438,3]
[402486261,1768685445926,-500.0,0.00016438,3]
[402486262,1768685445936,-724.13,0.00016438,3]
[402486263,1768685445945,-500.0,0.00016438,3]
[402486264,1768685445955,-1113.15,0.00016438,3]
[402486265,1768685445965,-503.06859357,0.00016438,3]
[402486267,1768685445975,-500.0,0.00016438,3]
[402486269,1768685445984,-1656.75,0.00016438,3]
[402486271,1768685445994,-675.39,0.00016438,3]
[402486273,1768685446004,-645.0,0.00016438,3]
[402486275,1768685446013,-500.0,0.00016438,3]
[402486277,1768685446022,-500.0,0.00016438,3]
[402486279,1768685446031,-500.0,0.00016438,3]
[402486281,1768685446041,-500.0,0.00016438,3]
[402486283,1768685446051,-500.0,0.00016438,3]
[402486285,1768685446063,-531.28,0.00016438,3]
[402486286,1768685446072,-683.55,0.00016438,3]
[402486287,1768685446082,-500.0,0.00016438,3]
[402486288,1768685446092,-500.0,0.00016438,3]
[402486289,1768685446102,-1002.99,0.00016438,3]
[402486290,1768685446111,-264.29964932,0.00016438,3]
[402486291,1768685446121,-500.0,0.00016438,3]
[402486292,1768685446131,-500.0,0.00016438,3]
[402486293,1768685446140,-500.0,0.00016438,3]
[402486294,1768685446150,-500.0,0.00016438,3]
[402486296,1768685446160,-500.0,0.00016438,3]
[402486297,1768685446170,-485.87912065,0.00016438,3]
[402486298,1768685446180,-500.0,0.00016438,3]
[402486299,1768685446189,-500.0,0.00016438,3]
[402486300,1768685446199,-500.0,0.00016438,3]
[402486301,1768685446208,-500.0,0.00016438,3]
[402486302,1768685446218,-500.0,0.00016438,3]
[402486303,1768685446228,-500.0,0.00016438,3]
[402486304,1768685446237,-543.61913102,0.00016438,3]
[402486305,1768685446248,-500.0,0.00016438,3]
[402486306,1768685446258,-435.20636976,0.00016438,3]
[402486307,1768685446271,-500.0,0.00016438,3]
[402486308,1768685446281,-500.0,0.00016438,3]
[402486309,1768685446290,-500.0,0.00016438,3]
[402486310,1768685446300,-450.64316952,0.00016438,3]
[402486311,1768685446312,-500.0,0.00016438,3]
[402486312,1768685446322,-500.0,0.00016438,3]
[402486313,1768685446332,-615.65,0.00016438,3]
[402486314,1768685446341,-500.0,0.00016438,3]
[402486315,1768685446351,-500.0,0.00016438,3]
[402486316,1768685446360,-1322.81,0.00016438,3]
[402486317,1768685446370,-500.0,0.00016438,3]
[402486318,1768685446378,-500.0,0.00016438,3]
[402486319,1768685446387,-1116.75,0.00016438,3]
[402486320,1768685446397,-500.0,0.00016438,3]
[402486321,1768685446406,-500.0,0.00016438,3]
[402486322,1768685446416,-500.0,0.00016438,3]
[402486323,1768685446425,-926.04,0.00016438,3]
[402486324,1768685446435,-500.0,0.00016438,3]
[402486325,1768685446444,-1113.91,0.00016438,3]
[402486326,1768685446454,-500.0,0.00016438,3]
[402486327,1768685446463,-500.0,0.00016438,3]
[402486328,1768685446472,-500.0,0.00016438,3]
[402486329,1768685446481,-772.14,0.00016438,3]
[402486330,1768685446491,-610.66,0.00016438,3]
[402486331,1768685446500,-890.03,0.00016438,3]
[402486332,1768685446510,-1264.47,0.00016438,3]
[402486333,1768685446519,-500.0,0.00016438,3]
[402486334,1768685446528,-500.0,0.00016438,3]
[402486335,1768685446538,-500.0,0.00016438,3]
[402486336,1768685446548,-500.0,0.00016438,3]
[402486337,1768685446557,-1281.78,0.00016438,3]
[402486338,1768685446566,-500.0,0.00016438,3]
[402486339,1768685446576,-1383.19,0.00016438,3]
[402486340,1768685446586,-1644.95,0.00016438,3]
[402486341,1768685446596,-500.0,0.00016438,3]
[402486342,1768685446605,-675.48,0.00016438,3]
[402486343,1768685446616,-500.0,0.00016438,3]
[402486344,1768685446625,-500.0,0.00016438,3]
[402486345,1768685446635,-183.73779352,0.00016438,3]
[402486346,1768685446645,-500.0,0.00016438,3]
[402486347,1768685446654,-1060.67,0.00016438,3]
[402486348,1768685446664,-659.86,0.00016438,3]
[402486349,1768685446674,-513.00114578,0.00016438,3]
[402486350,1768685446683,-500.0,0.00016438,3]
[402486351,1768685446693,-1860.69,0.00016438,3]
[402486352,1768685446703,-500.0,0.00016438,3]
[402486353,1768685446713,-500.0,0.00016438,3]
[402486354,1768685446722,-500.0,0.00016438,3]
[402486355,1768685446732,-529.99,0.00016438,3]
[402486356,1768685446741,-211.62283602,0.00016438,3]
[402486357,1768685446751,-500.0,0.00016438,3]
[402486358,1768685446761,-643.98345217,0.00016438,3]
[402486359,1768685446771,-752.26,0.00016438,3]
[402486360,1768685446780,-500.0,0.00016438,3]
[402486361,1768685446790,-500.0,0.00016438,3]
[402486362,1768685446800,-500.0,0.00016438,3]
[402486363,1768685446809,-557.85,0.00016438,3]
[402486364,1768685446819,-500.0,0.00016438,3]
[402486365,1768685446829,-500.0,0.00016438,3]
[402486366,1768685446839,-766.79,0.00016438,3]
[402486367,1768685446848,-500.0,0.00016438,3]
[402486368,1768685446858,-500.0,0.00016438,3]
[402486369,1768685446868,-600.21,0.00016438,3]
[402486370,1768685446878,-500.0,0.00016438,3]
[402486371,1768685446888,-500.0,0.00016438,3]
[402486372,1768685446898,-500.0,0.00016438,3]
[402486373,1768685446908,-500.0,0.00016438,3]
[402486374,1768685446918,-500.0,0.00016438,3]
[402486375,1768685446928,-992.96,0.00016438,3]
[402486376,1768685446938,-500.0,0.00016438,3]
[402486377,1768685446948,-500.0,0.00016438,3]
[402486378,1768685446958,-1375.31,0.00016438,3]
[402486379,1768685446967,-527.42325342,0.00016438,3]
[402486380,1768685446976,-2043.56,0.00016438,3]
[402486381,1768685446986,-500.0,0.00016438,3]
[402486382,1768685446996,-500.0,0.00016438,3]
[402486383,1768685447005,-500.0,0.00016438,3]
[402486384,1768685447015,-500.0,0.00016438,3]
[402486385,1768685447024,-500.0,0.00016438,3]
[402486386,1768685447034,-500.0,0.00016438,3]
[402486387,1768685447045,-500.0,0.00016438,3]
[402486388,1768685447055,-500.0,0.00016438,3]
[402486389,1768685447065,-500.0,0.00016438,3]
[402486390,1768685447074,-500.0,0.00016438,3]
[402486391,1768685447084,-597.06,0.00016438,3]
[402486392,1768685447094,-652.11,0.00016438,3]
[402486393,1768685447103,-1039.7,0.00016438,3]
[402486394,1768685447112,-728.77,0.00016438,3]
[402486395,1768685447122,-500.0,0.00016438,3]
[402486396,1768685447131,-1146.04,0.00016438,3]
[402486397,1768685447141,-500.0,0.00016438,3]
[402486398,1768685447150,-500.0,0.00016438,3]
[402486399,1768685447160,-500.0,0.00016438,3]
[402486400,1768685447169,-2176.82,0.00016438,3]
[402486401,1768685447178,-1893.94,0.00016438,3]
[402486402,1768685447187,-500.0,0.00016438,3]
[402486403,1768685447197,-444.83809808,0.00016438,3]
[402486404,1768685447206,-948.78,0.00016438,3]
[402486405,1768685447217,-768.12,0.00016438,3]
[402486406,1768685447226,-500.0,0.00016438,3]
[402486407,1768685447237,-500.0,0.00016438,3]